bitfinex/quotes_SOLUSD_20250422
["timestamp","ask_amount","ask_price","bid_price","bid_amount"]
[1745286588362,7.20305409,138.83,138.77,6.1818]
[1745286588567,7.20305409,138.83,138.82,13.23692867]
[1745286588788,7.20201656,138.85,138.82,13.23692867]
[1745286588973,7.20201656,138.85,138.84,13.23692867]
[1745286589168,7.20154881,138.86,138.84,13.23692867]
[1745286589368,0.063,138.87,138.85,13.23692867]
[1745286589584,0.063,138.87,138.86,13.23692867]
[1745286590696,7.26402754,138.87,138.86,13.23692867]
[1745286591691,7.26402754,138.87,138.85,13.23692867]
[1745286593068,7.26402754,138.87,138.86,13.23692867]
[1745286593894,0.063,138.87,138.86,13.23692867]
[1745286596316,0.063,138.87,138.86,56.56909024]
[1745286596602,0.063,138.87,138.86,157.8187391]
[1745286597585,0.063,138.87,138.86,139.16909024]
[1745286597784,0.063,138.87,138.86,95.97909024]
[1745286597992,0.063,138.87,138.86,95.83692867]
[1745286598279,0.063,138.87,138.86,13.23692867]
[1745286600991,0.063,138.87,138.85,13.23692867]
[1745286601811,0.063,138.87,138.86,13.23692867]
[1745286603121,0.063,138.87,138.79,0.03]
[1745286603122,44.64964886,138.86,138.79,0.03]
[1745286603282,13.23692867,138.83,138.79,0.03]
[1745286603479,20.44050164,138.82,138.79,0.03]
[1745286604107,25.2125054,138.82,138.79,0.03]
[1745286606307,38.44943407,138.82,138.79,0.03]
[1745286606509,25.2125054,138.82,138.79,0.03]
[1745286608113,25.2125054,138.82,138.79,13.26692867]
[1745286608114,7.20357297,138.82,138.79,13.26692867]
[1745286608419,7.20253529,138.84,138.81,13.23692867]
[1745286608592,7.20253529,138.84,138.82,13.23692867]
[1745286608794,7.20253529,138.84,138.81,13.23692867]
[1745286609107,7.20149791,138.86,138.82,13.23692867]
[1745286609414,7.26405187,138.87,138.84,13.23692867]
[1745286610102,0.063,138.87,138.84,13.23692867]
[1745286611513,0.063,138.87,138.85,13.23692867]
[1745286611709,0.063,138.87,138.86,13.23692867]
[1745286612624,0.063,138.87,138.85,13.23692867]
[1745286613324,0.063,138.87,138.84,13.23692867]
[1745286615196,0.063,138.87,138.85,13.23692867]
[1745286615393,0.063,138.87,138.86,13.23692867]
[1745286617509,0.063,138.87,138.85,13.23692867]
[1745286619715,0.063,138.87,138.86,13.23692867]
[1745286620019,0.063,138.87,138.86,13.37909024]
[1745286622702,0.063,138.87,138.86,56.56909024]
[1745286623594,0.063,138.87,138.86,43.33216157]
[1745286623790,0.063,138.87,138.86,56.56909024]
[1745286624317,0.063,138.89,138.87,0.14216157]
[1745286624506,0.063,138.89,138.88,26.47385734]
[1745286624716,0.063,138.89,138.88,69.80601891]
[1745286624924,0.063,138.89,138.88,115.96246777]
[1745286625331,0.063,138.9,138.89,61.98181043]
[1745286625633,0.063,138.9,138.89,75.2187391]
[1745286626822,0.063,138.9,138.89,56.56909024]
[1745286629439,0.063,138.91,138.9,87.98181043]
[1745286629622,0.063,138.91,138.9,101.2187391]
[1745286629938,0.03,138.94,138.92,69.19]
[1745286630129,0.03,138.99,138.97,0.14216157]
[1745286630311,0.03,138.99,138.98,13.23692867]
[1745286630953,0.03,138.99,138.98,13.37909024]
[1745286633143,0.03,138.99,138.98,75.2187391]
[1745286633326,0.063,139.01,139.0,26.0]
[1745286633527,0.063,139.01,139.0,39.23692867]
[1745286633829,0.063,139.01,139.0,39.37909024]
[1745286634238,0.063,139.01,139.0,39.23692867]
[1745286634452,0.063,139.01,139.0,13.23692867]
[1745286635452,0.063,139.01,139.0,39.37909024]
[1745286636847,0.063,139.01,139.0,81.4224391]
[1745286637260,0.063,139.01,139.0,107.4224391]
[1745286637428,0.063,139.01,139.0,69.33216157]
[1745286637737,0.063,139.01,139.0,82.56909024]
[1745286638141,0.063,139.01,138.99,13.23692867]
[1745286638340,0.063,139.01,139.0,13.23692867]
[1745286639856,0.063,139.01,139.0,13.37909024]
[1745286640068,0.063,139.01,139.0,75.2187391]
[1745286640364,0.063,139.01,139.0,81.3606391]
[1745286640655,0.063,139.01,139.0,88.71099024]
[1745286640860,0.063,139.01,139.0,82.56909024]
[1745286641861,0.063,139.01,139.0,101.2187391]
[1745286644551,0.063,139.01,139.0,82.56909024]
[1745286645556,0.063,139.01,139.0,101.2187391]
[1745286645750,13.29992867,139.01,138.92,43.19]
[1745286646065,13.23692867,139.0,138.95,39.23692867]
[1745286646243,13.23692867,139.0,138.95,13.23692867]
[1745286646443,7.1942446,139.0,138.96,13.23692867]
[1745286646635,7.25687609,139.01,138.98,13.23692867]
[1745286647061,7.25687609,139.01,138.97,13.37909024]
[1745286647559,7.25687609,139.01,138.98,13.23692867]
[1745286648561,7.25687609,139.01,138.99,13.23692867]
[1745286649555,0.063,139.01,139.0,13.23692867]
[1745286650263,0.063,139.01,138.99,13.23692867]
[1745286650433,0.063,139.01,138.98,13.23692867]
[1745286650635,13.23692867,139.0,138.95,13.23692867]
[1745286650867,13.23692867,138.99,138.94,13.23692867]
[1745286651644,17.9877399,138.99,138.95,13.23692867]
[1745286651855,25.18250211,138.99,138.95,13.23692867]
[1745286652052,7.19476221,138.99,138.97,13.23692867]
[1745286652752,7.25689177,139.01,138.98,13.23692867]
[1745286653074,0.063,139.01,138.98,13.23692867]
[1745286653373,0.063,139.01,138.99,13.23692867]
[1745286653542,0.063,139.01,139.0,13.23692867]
[1745286653863,0.063,139.01,139.0,13.37909024]
[1745286656700,0.063,139.01,139.0,13.23692867]
[1745286657278,0.063,139.01,138.98,13.37909024]
[1745286657684,0.063,139.01,138.99,13.23692867]
[1745286658069,0.063,139.01,139.0,13.23692867]
[1745286659289,0.063,139.01,139.0,13.37909024]
[1745286659589,0.063,139.01,139.0,75.2187391]
[1745286661534,0.063,139.01,139.0,43.19]
[1745286661912,0.063,139.01,139.0,56.56909024]
[1745286662193,0.063,139.01,139.0,75.2187391]
[1745286662608,0.03,139.02,139.01,61.98181043]
[1745286662785,0.03,139.02,139.01,101.2187391]
[1745286663281,0.03,139.04,139.03,69.33216157]
[1745286663498,0.03,139.04,139.03,82.56909024]
[1745286667719,0.03,139.04,139.03,56.56909024]
[1745286668209,0.03,139.04,139.03,75.2187391]
[1745286668719,0.03,139.04,139.01,82.6]
[1745286668930,0.03,139.04,139.02,13.23692867]
[1745286669087,0.03,139.04,139.03,13.23692867]
[1745286669303,0.03,139.04,139.03,56.56909024]
[1745286669874,0.03,139.04,139.03,75.2187391]
[1745286670155,0.03,139.05,139.04,61.98181043]
[1745286670309,0.03,139.07,139.06,87.98181043]
[1745286670610,0.03,139.13,139.07,0.14216157]
[1745286670919,0.03,139.13,139.12,13.37909024]
[1745286671282,0.03,139.13,139.12,56.56909024]
[1745286672387,0.03,139.13,139.11,0.14216157]
[1745286672600,0.03,139.13,139.12,26.14216157]
[1745286672918,0.03,139.13,139.12,39.37909024]
[1745286673288,0.03,139.13,139.12,82.56909024]
[1745286673704,0.03,139.13,139.12,69.33216157]
[1745286673915,0.03,139.13,139.12,114.45566777]
[1745286674404,0.03,139.13,139.12,101.2187391]
[1745286674603,0.03,139.13,139.12,87.98181043]
[1745286674808,0.03,139.13,139.12,101.2187391]
[1745286674989,0.03,139.13,139.12,114.45566777]
[1745286676501,0.03,139.13,139.12,197.05566777]
[1745286676808,0.03,139.15,139.14,87.98181043]
[1745286676971,0.03,139.15,139.14,101.2187391]
[1745286677160,0.03,139.18,139.14,101.2187391]
[1745286677161,0.03,139.18,139.17,82.56909024]
[1745286677877,0.03,139.18,139.16,13.23692867]
[1745286678488,0.03,139.18,139.17,13.23692867]
[1745286678862,0.03,139.18,139.17,13.37909024]
[1745286679068,0.03,139.18,139.17,56.56909024]
[1745286679876,0.03,139.18,139.15,43.19]
[1745286680061,0.03,139.18,139.15,56.42692867]
[1745286680789,0.03,139.18,139.15,43.19]
[1745286681005,0.03,139.18,139.16,13.23692867]
[1745286681378,0.03,139.18,139.15,13.23692867]
[1745286682273,0.03,139.18,139.17,13.23692867]
[1745286682475,0.03,139.18,139.16,13.23692867]
[1745286684294,0.03,139.18,139.14,13.23692867]
[1745286684469,13.26692867,139.18,139.13,56.42692867]
[1745286684671,13.23692867,139.17,139.12,56.03692867]
[1745286684987,13.23692867,139.15,139.1,13.23692867]
[1745286685290,14.85012867,139.16,139.11,13.23692867]
[1745286685891,7.18648939,139.15,139.1,0.14216157]
[1745286686071,7.18648939,139.15,139.12,13.23692867]
[1745286687164,13.23692867,139.14,139.09,56.42692867]
[1745286687368,38.38964155,139.15,139.1,13.23692867]
[1745286687786,13.23692867,139.14,139.09,13.23692867]
[1745286688003,38.39325728,139.13,139.08,39.23692867]
[1745286688172,38.39325728,139.13,139.08,26.0]
[1745286688370,13.23692867,139.12,139.07,13.23692867]
[1745286689890,7.18752246,139.13,139.11,13.23692867]
[1745286690394,7.18752246,139.13,139.1,13.23692867]
[1745286693797,13.23692867,139.11,139.06,13.23692867]
[1745286693977,7.1890726,139.1,139.06,13.23692867]
[1745286694888,7.1890726,139.1,139.07,13.23692867]
[1745286696019,25.16021973,139.11,139.07,13.23692867]
[1745286696901,13.23692867,139.09,139.02,289.893]
[1745286697105,1.5036,139.1,139.02,289.893]
[1745286697106,13.23692867,139.08,139.03,13.23692867]
[1745286697477,13.23692867,139.08,139.02,0.063]
[1745286697698,13.23692867,139.08,139.03,13.23692867]
[1745286698006,13.23692867,139.09,139.04,13.23692867]
[1745286698210,7.19010641,139.08,139.04,13.23692867]
[1745286698510,7.19010641,139.08,139.05,13.23692867]
[1745286699908,7.18958947,139.09,139.05,13.23692867]
[1745286701982,7.18958947,139.09,139.06,13.23692867]
[1745286702982,83.0,139.13,139.08,13.23692867]
[1745286703185,7.18773823,139.13,139.12,13.23692867]
[1745286703794,7.18714277,139.14,139.12,13.23692867]
[1745286704195,7.18714277,139.14,139.11,13.23692867]
[1745286705314,25.15203196,139.16,139.11,13.23692867]
[1745286705605,108.15203196,139.16,139.11,13.23692867]
[1745286707808,121.38896063,139.16,139.11,13.23692867]
[1745286708107,1.5685,139.11,139.05,13.23692867]
[1745286708308,1.5685,139.11,139.03,13.23692867]
[1745286708309,13.23692867,139.08,139.03,13.23692867]
[1745286708497,13.23692867,139.09,139.04,13.23692867]
[1745286709083,13.23692867,139.09,139.02,0.063]
[1745286709300,13.23692867,139.09,139.03,13.23692867]
[1745286709700,13.23692867,139.09,139.04,13.23692867]
[1745286709908,7.19010641,139.08,139.04,13.23692867]
[1745286710513,7.19010641,139.08,139.06,13.23692867]
[1745286710714,7.19010641,139.08,139.05,13.23692867]
[1745286711625,20.42703508,139.08,139.02,0.063]
[1745286711828,7.19010641,139.08,139.04,13.23692867]
[1745286712206,7.19010641,139.08,139.05,13.23692867]
[1745286712528,7.19010641,139.08,139.02,0.063]
[1745286712729,7.19010641,139.08,139.05,13.23692867]
[1745286713728,7.19010641,139.08,139.04,13.23692867]
[1745286714923,7.19010641,139.08,139.05,13.23692867]
[1745286716225,7.18958947,139.09,139.05,13.23692867]
[1745286717613,13.23692867,139.08,139.03,13.23692867]
[1745286718131,38.40049182,139.09,139.04,13.23692867]
[1745286718327,13.23692867,139.07,139.02,13.29992867]
[1745286718544,13.23692867,139.06,139.02,0.063]
[1745286719331,13.23692867,139.07,139.02,13.29992867]
[1745286719527,96.23692867,139.08,139.02,13.29992867]
[1745286719739,83.0,139.08,139.04,13.23692867]
[1745286720040,7.19062342,139.07,139.04,13.23692867]
[1745286720334,7.18958947,139.09,139.05,13.23692867]
[1745286720631,7.18958947,139.09,139.04,13.23692867]
[1745286720932,13.23692867,139.08,139.03,13.23692867]
[1745286721238,13.23692867,139.06,139.02,0.063]
[1745286721734,31.88657753,139.07,139.02,0.063]
[1745286721931,38.40049182,139.09,139.04,13.23692867]
[1745286722112,38.40049182,139.09,139.05,13.23692867]
[1745286722113,25.16356315,139.09,139.05,13.23692867]
[1745286722717,7.18958947,139.09,139.05,13.23692867]
[1745286722937,83.0,139.1,139.06,13.23692867]
[1745286723112,7.18926708,139.1,139.08,13.23692867]
[1745286723536,25.15650278,139.13,139.09,13.23692867]
[1745286723834,25.15650278,139.13,139.08,13.23692867]
[1745286724038,38.39343145,139.13,139.08,13.23692867]
[1745286724232,13.23692867,139.12,139.07,13.23692867]
[1745286724734,25.15650278,139.13,139.08,13.23692867]
[1745286724942,7.18752246,139.13,139.1,13.23692867]
[1745286725927,7.18752246,139.13,139.11,13.23692867]
[1745286726537,7.18752246,139.13,139.1,13.23692867]
[1745286726833,7.18752246,139.13,139.06,0.14216157]
[1745286727036,13.23692867,139.12,139.07,13.23692867]
[1745286727732,25.15632861,139.13,139.09,13.23692867]
[1745286727924,7.18752246,139.13,139.1,13.23692867]
[1745286728126,7.18700589,139.14,139.1,13.23692867]
[1745286728434,25.15452062,139.14,139.09,13.23692867]
[1745286729515,25.15452062,139.14,139.1,13.23692867]
[1745286729715,7.18700589,139.14,139.11,13.23692867]
[1745286729938,7.18700589,139.14,139.1,13.23692867]
[1745286730441,7.18700589,139.14,139.12,13.23692867]
[1745286730819,7.18700589,139.14,139.11,13.23692867]
[1745286731736,25.15090712,139.16,139.11,13.23692867]
[1745286732944,38.38783579,139.16,139.09,44.89136157]
[1745286733143,13.23692867,139.15,139.1,56.42692867]
[1745286734121,38.39144929,139.14,139.08,82.42692867]
[1745286734522,13.23692867,139.12,139.07,13.23692867]
[1745286734737,108.15452062,139.14,139.08,13.23692867]
[1745286735037,13.23692867,139.13,139.08,13.23692867]
[1745286735846,121.39144929,139.14,139.09,13.23692867]
[1745286736019,13.23692867,139.13,139.08,13.23692867]
[1745286736220,7.1880391,139.12,139.08,13.23692867]
[1745286736421,7.1880391,139.12,139.09,13.23692867]
[1745286736637,7.1880391,139.12,139.08,13.23692867]
[1745286736937,7.1880391,139.12,139.07,43.19]
[1745286737138,13.23692867,139.11,139.06,13.23692867]
[1745286737733,13.23692867,139.11,139.05,13.23692867]
[1745286737927,96.23692867,139.11,139.05,13.23692867]
[1745286738231,7.19010641,139.08,139.04,56.42692867]
[1745286739314,38.40230111,139.08,139.02,0.063]
[1745286739529,38.40230111,139.08,139.03,13.23692867]
[1745286740043,13.23692867,139.06,139.02,0.063]
[1745286740346,7.19165767,139.05,139.02,13.29992867]
[1745286740830,7.19165767,139.05,139.02,0.063]
[1745286741032,7.19165767,139.05,139.03,13.23692867]
[1745286741419,7.19165767,139.05,139.02,0.063]
[1745286741420,7.19165767,139.05,139.02,13.29992867]
[1745286742245,7.19114051,139.06,139.02,13.29992867]
[1745286743054,20.42806918,139.06,139.02,0.063]
[1745286743421,38.40592046,139.06,139.02,0.063]
[1745286743958,25.16899179,139.06,139.02,0.063]
[1745286744638,31.21477995,139.06,139.02,0.063]
[1745286745336,13.23692867,139.05,139.02,0.063]
[1745286746151,13.23692867,139.04,139.02,0.063]
[1745286746449,18.64964886,139.02,139.01,1e-08]
[1745286746663,26.0,139.0,138.93,13.23692867]
[1745286746959,13.23692867,138.98,138.93,13.23692867]
[1745286747754,13.23692867,138.98,138.92,13.23692867]
[1745286748449,13.23692867,138.98,138.91,21.12102867]
[1745286748752,38.42222045,138.97,138.91,21.12102867]
[1745286749350,13.23692867,138.96,138.91,7.8841]
[1745286749533,13.23692867,138.95,138.91,0.063]
[1745286750759,20.43376206,138.95,138.91,0.063]
[1745286752847,101.64964886,138.94,138.91,0.063]
[1745286753046,13.23692867,138.92,138.91,0.063]
[1745286753445,25.18891687,138.95,138.91,0.063]
[1745286753642,25.18891687,138.95,138.91,13.29992867]
[1745286754136,38.42584554,138.95,138.91,0.063]
[1745286756035,25.18891687,138.95,138.91,0.063]
[1745286756357,25.18891687,138.95,138.91,13.29992867]
[1745286757056,7.19683339,138.95,138.91,13.29992867]
[1745286757262,7.19683339,138.95,138.92,13.23692867]
[1745286757840,7.19683339,138.95,138.93,13.23692867]
[1745286758067,7.19579765,138.97,138.94,13.23692867]
[1745286758556,7.19579765,138.97,138.93,13.23692867]
[1745286758948,7.19579765,138.97,138.94,13.23692867]
[1745286759141,25.18453944,138.98,138.94,13.23692867]
[1745286762173,25.18453944,138.98,138.91,69.39516157]
[1745286762174,38.42146811,138.98,138.93,13.23692867]
[1745286762762,13.23692867,138.97,138.92,13.23692867]
[1745286762961,13.23692867,138.96,138.91,13.44209024]
[1745286763336,25.18453944,138.98,138.91,13.44209024]
[1745286763337,38.4234705,138.97,138.92,13.23692867]
[1745286765872,13.23692867,138.93,138.91,0.063]
[1745286766048,13.23692867,138.92,138.91,0.063]
[1745286766244,13.23692867,138.93,138.91,0.063]
[1745286767377,7.19838756,138.92,138.91,0.063]
[1745286770374,7.19735137,138.94,138.91,13.29992867]
[1745286770578,7.19735137,138.94,138.92,13.23692867]
[1745286770782,7.19631548,138.96,138.93,13.23692867]
[1745286771362,7.19631548,138.96,138.92,13.23692867]
[1745286771770,20.43324415,138.96,138.91,13.29992867]
[1745286772272,20.43324415,138.96,138.91,0.063]
[1745286772450,38.42403286,138.96,138.91,0.063]
[1745286772845,38.42403286,138.96,138.91,13.29992867]
[1745286773975,25.18710419,138.96,138.92,13.23692867]
[1745286774978,31.22771738,138.96,138.91,13.29992867]
[1745286775272,31.22771738,138.96,138.91,0.063]
[1745286775972,17.99078871,138.96,138.91,13.29992867]
[1745286776273,7.19579765,138.97,138.94,13.23692867]
[1745286777782,25.17697142,139.02,138.96,13.23692867]
[1745286778075,25.17697142,139.02,138.98,13.23692867]
[1745286778446,7.22320961,139.02,139.0,13.23692867]
[1745286778674,7.22320961,139.02,138.99,13.23692867]
[1745286779049,0.03,139.02,138.99,13.23692867]
[1745286779946,0.03,139.02,139.0,13.23692867]
[1745286780359,0.03,139.02,139.01,13.23692867]
[1745286781084,0.03,139.02,139.0,20.98432867]
[1745286781375,0.03,139.02,139.0,13.23692867]
[1745286781682,0.03,139.02,138.99,13.23692867]
[1745286781862,0.03,139.02,139.0,13.23692867]
[1745286782664,0.03,139.02,138.99,13.23692867]
[1745286785874,0.03,139.02,138.99,26.0]
[1745286786063,0.03,139.02,139.01,13.23692867]
[1745286786260,0.03,139.02,139.01,13.37909024]
[1745286787383,0.03,139.02,139.01,13.23692867]
[1745286788679,0.03,139.02,139.0,13.23692867]
[1745286788986,0.03,139.02,138.96,13.23692867]
[1745286788987,13.23692867,139.01,138.94,82.6]
[1745286789281,13.23692867,138.98,138.91,82.663]
[1745286789487,13.23692867,138.97,138.91,26.063]
[1745286789663,13.23692867,138.97,138.92,13.23692867]
[1745286790386,7.19631548,138.96,138.93,13.23692867]
[1745286790766,13.23692867,138.99,138.94,13.37909024]
[1745286790965,13.23692867,139.01,138.97,43.19]
[1745286791165,13.23692867,139.01,138.96,13.23692867]
[1745286791691,7.1942446,139.0,138.96,13.23692867]
[1745286794697,20.43117327,139.0,138.92,61.98181043]
[1745286794991,13.23692867,138.99,138.95,0.14216157]
[1745286795491,20.43117327,139.0,138.95,0.14216157]
[1745286795669,20.43117327,139.0,138.95,13.37909024]
[1745286796290,13.23692867,138.99,138.93,0.14216157]
[1745286796595,13.23692867,138.99,138.94,13.23692867]
[1745286797791,25.17985611,139.0,138.93,39.23692867]
[1745286797792,13.23692867,138.98,138.93,39.23692867]
[1745286798093,13.23692867,138.98,138.93,13.23692867]
[1745286798297,7.19579765,138.97,138.93,13.23692867]
[1745286800294,7.19527989,138.98,138.94,13.23692867]
[1745286800974,7.19498479,138.99,138.96,13.23692867]
[1745286801898,7.19498479,138.99,138.95,13.37909024]
[1745286802282,13.23692867,138.98,138.94,26.0]
[1745286802494,13.23692867,138.98,138.93,13.37909024]
[1745286802680,13.23692867,138.97,138.92,13.37909024]
[1745286803905,13.23692867,138.97,138.92,0.14216157]
[1745286804089,7.19631548,138.96,138.92,13.37909024]
[1745286806604,17.98932695,138.98,138.93,13.23692867]
[1745286806979,31.22625562,138.98,138.93,13.23692867]
[1745286808809,38.42153551,138.98,138.93,13.23692867]
[1745286810305,7.19527989,138.98,138.95,13.23692867]
[1745286810607,7.19527989,138.98,138.96,13.23692867]
[1745286810809,38.41678478,139.0,138.95,13.23692867]
[1745286810987,7.1942446,139.0,138.97,13.23692867]
[1745286811510,7.1942446,139.0,138.98,13.23692867]
[1745286811886,7.1942446,139.0,138.97,13.37909024]
[1745286813600,7.19372706,139.01,138.97,13.37909024]
[1745286816919,38.4149734,139.01,138.95,13.23692867]
[1745286817487,13.23692867,138.98,138.93,13.37909024]
[1745286818018,13.23692867,138.98,138.93,0.14216157]
[1745286818218,13.23692867,138.97,138.92,21.42642867]
[1745286818421,13.23692867,138.97,138.93,0.14216157]
[1745286818717,13.23692867,138.98,138.93,0.14216157]
[1745286819015,7.19579765,138.97,138.93,0.14216157]
[1745286819506,7.19579765,138.97,138.93,13.37909024]
[1745286819909,7.1942446,139.0,138.96,0.14216157]
[1745286820111,7.1942446,139.0,138.95,13.37909024]
[1745286820319,7.1942446,139.0,138.97,13.23692867]
[1745286820503,7.1942446,139.0,138.98,13.23692867]
[1745286820898,0.03,139.02,138.99,30.03909024]
[1745286821093,0.03,139.02,139.01,13.23692867]
[1745286821402,0.03,139.02,139.01,13.37909024]
[1745286821602,0.03,139.02,139.01,13.23692867]
[1745286821803,0.03,139.02,139.0,13.23692867]
[1745286821997,0.03,139.02,139.01,13.23692867]
[1745286822694,0.03,139.02,139.0,0.14216157]
[1745286822894,0.03,139.02,139.0,13.37909024]
[1745286824329,0.03,139.02,139.01,13.37909024]
[1745286825423,0.03,139.02,139.01,96.34539674]
[1745286825616,0.03,139.02,139.01,90.68579024]
[1745286826139,0.03,139.02,139.01,77.44886157]
[1745286826305,0.03,139.02,139.01,47.49579024]
[1745286826510,0.03,139.02,139.01,0.14216157]
[1745286826922,0.03,139.02,139.01,13.37909024]
[1745286830107,0.03,139.02,139.0,13.23692867]
[1745286830410,0.03,139.02,139.01,13.23692867]
[1745286830811,0.03,139.02,139.0,13.23692867]
[1745286831011,0.03,139.02,139.01,13.23692867]
[1745286832706,0.03,139.02,138.99,0.14216157]
[1745286832707,0.03,139.02,139.0,13.23692867]
[1745286834034,0.03,139.02,139.01,13.23692867]
[1745286834435,0.03,139.02,139.01,39.37909024]
[1745286837230,0.03,139.02,139.01,101.2187391]
[1745286837425,0.03,139.02,139.01,108.8212391]
[1745286837631,0.03,139.06,139.05,26.0]
[1745286837830,0.03,139.06,139.05,39.37909024]
[1745286839242,0.03,139.06,139.04,16.66]
[1745286839243,0.03,139.06,139.04,13.23692867]
[1745286839424,0.03,139.06,139.03,13.23692867]
[1745286840836,0.03,139.06,139.04,13.23692867]
[1745286841250,0.03,139.06,139.05,13.23692867]
[1745286842916,0.03,139.06,139.05,13.37909024]
[1745286843549,0.03,139.06,139.05,82.56909024]
[1745286847038,0.03,139.06,139.01,13.23692867]
[1745286847354,0.03,139.06,138.98,24.2225]
[1745286847355,13.23692867,139.05,138.98,24.2225]
[1745286847549,13.23692867,139.05,139.0,13.23692867]
[1745286847727,13.23692867,139.05,138.97,82.6]
[1745286847728,13.23692867,139.04,138.97,82.6]
[1745286847934,13.23692867,139.04,138.99,13.23692867]
[1745286848147,0.03,139.06,139.02,13.23692867]
[1745286848741,39.23692867,139.04,138.97,59.81]
[1745286848935,7.19269222,139.03,138.99,13.23692867]
[1745286849130,83.03,139.06,138.99,13.23692867]
[1745286849131,0.03,139.06,139.02,13.23692867]
[1745286849337,0.03,139.06,139.05,13.23692867]
[1745286849733,0.03,139.06,139.04,13.37909024]
[1745286849932,0.03,139.06,139.05,13.23692867]
[1745286854038,0.03,139.06,139.05,56.56909024]
[1745286858549,0.03,139.06,139.05,56.42692867]
[1745286858749,0.03,139.06,139.05,56.56909024]
[1745286860959,0.03,139.06,139.05,75.2187391]
[1745286866665,0.03,139.08,139.07,69.33216157]
[1745286866981,0.03,139.08,139.07,82.56909024]
[1745286871375,0.03,139.09,139.08,0.14216157]
[1745286871578,0.03,139.12,139.08,73.18909024]
[1745286871778,0.03,139.12,139.11,13.23692867]
[1745286874480,0.03,139.12,139.11,13.37909024]
[1745286882482,0.03,139.12,139.11,13.23692867]
[1745286885186,0.03,139.12,139.11,13.37909024]
[1745286885372,0.03,139.12,139.11,8.59705331]
[1745286887688,0.03,139.12,139.09,26.14216157]
[1745286887985,0.03,139.12,139.11,8.45489174]
[1745286889993,0.03,139.12,139.11,8.59705331]
[1745286892696,0.03,139.12,139.11,51.71705331]
[1745286894897,0.03,139.12,139.11,8.45489174]
[1745286897595,0.03,139.12,139.11,8.59705331]
[1745286902777,0.03,139.16,139.11,111.53662027]
[1745286902978,0.03,139.16,139.15,8.45489174]
[1745286906509,0.03,139.16,139.15,34.59705331]
[1745286908806,0.03,139.16,139.15,77.71705331]
[1745286908987,0.03,139.17,139.16,8.45489174]
[1745286909387,0.03,139.17,139.16,51.57489174]
[1745286913731,0.03,139.17,139.16,51.71705331]
[1745286914100,0.03,139.2,139.19,69.12]
[1745286914303,0.03,139.2,139.19,77.71705331]
[1745286914888,0.03,139.2,139.19,77.57489174]
[1745286915089,0.03,139.2,139.19,111.53662027]
[1745286915290,0.03,139.22,139.2,0.14216157]
[1745286915518,0.03,139.22,139.21,51.57489174]
[1745286916298,0.03,139.22,139.21,51.71705331]
[1745286916812,0.03,139.22,139.21,70.36670217]
[1745286917204,0.03,139.26,139.25,69.12]
[1745286917503,0.03,139.26,139.25,77.71705331]
[1745286919917,7.17772035,139.32,139.26,0.14216157]
[1745286920125,7.17772035,139.32,139.3,8.45489174]
[1745286920419,7.17669011,139.34,139.31,51.57489174]
[1745286920612,8.83588501,139.35,139.33,8.45489174]
[1745286920806,8.83588501,139.35,139.32,8.45489174]
[1745286921516,8.83588501,139.35,139.33,8.45489174]
[1745286922095,7.17638501,139.35,139.32,8.45489174]
[1745286922318,54.58757856,139.4,139.32,8.45489174]
[1745286922319,5.62241288,139.43,139.42,87.91181043]
[1745286922597,5.62241288,139.43,139.41,8.45489174]
[1745286922819,5.62241288,139.43,139.4,34.45489174]
[1745286923126,7.17102904,139.45,139.4,34.45489174]
[1745286923300,7.17102904,139.45,139.4,26.0]
[1745286923731,7.17102904,139.45,139.4,34.45489174]
[1745286924221,13.65541455,139.46,139.42,8.45489174]
[1745286924404,13.65541455,139.46,139.4,77.57489174]
[1745286924405,14.93959174,139.46,139.4,77.57489174]
[1745286924932,6.4847,139.46,139.41,8.45489174]
[1745286925108,22.11040535,139.46,139.4,34.45489174]
[1745286925311,13.65551361,139.46,139.41,13.1580067]
[1745286925605,13.65551361,139.46,139.42,13.1580067]
[1745286926511,18.64964886,139.42,139.33,290.4]
[1745286926821,13.1580067,139.4,139.34,13.1580067]
[1745286927022,13.1580067,139.4,139.35,13.1580067]
[1745286927208,13.1580067,139.41,139.35,13.1580067]
[1745286927415,13.1580067,139.42,139.36,13.30016827]